fUST/lending_fUST_20240805
["ID","MTS","AMOUNT","RATE_DAILY","PERIOD"]
[334205394,1722839257970,-443.45,0.000261,31]
[334205395,1722839258005,-443.45,0.000261,31]
[334205396,1722839258032,-443.45,0.000261,31]
[334205397,1722839258061,-443.45,0.000261,31]
[334205398,1722839258088,-443.45,0.000261,31]
[334205399,1722839258115,-443.45,0.000261,31]
[334205400,1722839258143,-443.45,0.000261,31]
[334205401,1722839258169,-443.45,0.000261,31]
[334205402,1722839258196,-443.45,0.000261,31]
[334205403,1722839258224,-443.45,0.000261,31]
[334205404,1722839258251,-800.06,0.000265,14]
[334205405,1722839258276,-6191.71,0.000265,14]
[334205406,1722839258304,-999.47999369,0.00026517,2]
[334205407,1722839258333,-443.45,0.000266,31]
[334205408,1722839258362,-443.45,0.000266,31]
[334205409,1722839258390,-443.45,0.000266,31]
[334205410,1722839258417,-443.45,0.000266,31]
[334205411,1722839258445,-443.45,0.000266,31]
[334205412,1722839258475,-443.45,0.000266,31]
[334205413,1722839259856,-443.45,0.000266,31]
[334205414,1722839259892,-443.45,0.000266,31]
[334205415,1722839259923,-443.45,0.000266,31]
[334205416,1722839259953,-443.45,0.000266,31]
[334205417,1722839259981,-443.45,0.000266,31]
[334205418,1722839260017,-443.45,0.000266,31]
[334205419,1722839260044,-443.45,0.000266,31]
[334205420,1722839260071,-443.45,0.000266,31]
[334205421,1722839260098,-443.45,0.000266,31]
[334205422,1722839260125,-443.45,0.000266,31]
[334205423,1722839260153,-443.45,0.000266,31]
[334205424,1722839260179,-443.45,0.000266,31]
[334205425,1722839260206,-443.45,0.000266,31]
[334205426,1722839260229,-1691.89437031,0.00026604,2]
[334205427,1722839260256,-160.54991199,0.0002661,2]
[334205428,1722839260278,-154.74467129,0.00026619,2]
[334205429,1722839260300,-2095.57130527,0.00026693,2]
[334205430,1722839260321,-731.69385862,0.00026914,2]
[334205431,1722839260345,-274.0,0.00027,2]
[334205432,1722839260366,-620.75081134,0.00027098,2]
[334205433,1722839260388,-259.16122,0.00027167,2]
[334205434,1722839260410,-150.112233,0.000273,6]
[334205435,1722839260435,-3080.238492,0.00027397,120]
[334205436,1722839260457,-151.0,0.000275,7]
[334205437,1722839260482,-274.0,0.00027671,2]
[334205438,1722839260510,-150.0,0.00027956,2]
[334205439,1722839260532,-507.0,0.00027956,2]
[334205440,1722839260554,-1411.0,0.00027956,2]
[334205441,1722839260576,-163.968193,0.00028493,2]
[334205442,1722839260597,-163.968193,0.00028493,120]
[334205443,1722839260618,-289.84,0.000285,7]
[334205444,1722839260640,-274.0,0.00028767,2]
[334205445,1722839260662,-800.06,0.0003,14]
[334205446,1722839260684,-151.0,0.0003,120]
[334205447,1722839260705,-276.0,0.00030205,2]
[334205448,1722839260728,-6191.71,0.000303,14]
[334205449,1722839260758,-200.0,0.00030353,2]
[334205450,1722839260783,-200.0,0.0003069,120]
[334205451,1722839260807,-150.0,0.00030956,2]
[334205452,1722839260906,-483.354,0.00030956,2]
[334205453,1722839260939,-630.075,0.00030956,2]
[334205454,1722839260961,-150.112233,0.00031,8]
[334205455,1722839260984,-2095.57130527,0.00031197,2]
[334205456,1722839261012,-151.0,0.00031288,120]
[334205457,1722839261034,-3080.238492,0.00031963,120]
[334205458,1722839261056,-274.0,0.00032219,2]
[334205459,1722839261082,-5265.89292999,0.000325,60]
[334205460,1722839261104,-151.0,0.00032575,120]
[334205461,1722839261128,-155.00833792,0.00033601,31]
[334205462,1722839261151,-259.16122,0.00033626,2]
[334205463,1722839261173,-151.0,0.000337,7]
[334205464,1722839261195,-151.0,0.00033795,15]
[334205465,1722839261217,-151.0,0.00033863,120]
[334205466,1722839261240,-200.0,0.00034104,120]
[334205467,1722839261271,-274.0,0.00034233,2]
[334205468,1722839261295,-289.84,0.000343,30]
[334205469,1722839261318,-274.0,0.00034521,2]
[334205470,1722839261342,-150.112233,0.000347,6]
[334205471,1722839261364,-800.06,0.000347,14]
[334205472,1722839261387,-166.577672,0.00034703,2]
[334205473,1722839261410,-6191.71,0.000348,14]
[334205474,1722839261435,-640.32095285,0.00035,7]
[334205475,1722839261458,-151.0,0.00035151,120]
[334205476,1722839261484,-170.21,0.00035576,120]
[334205477,1722839261518,-150.5,0.00035586,120]
[334205478,1722839261539,-150.5,0.00035596,120]
[334205479,1722839261563,-155.00833792,0.00035601,38]
[334205480,1722839261586,-151.0,0.00035607,7]
[334205481,1722839261610,-151.0,0.00035607,7]
[334205482,1722839261634,-471.97795,0.00035607,7]
[334205483,1722839261657,-471.97795,0.00035607,7]
[334205484,1722839261680,-151.0,0.00035607,7]
[334205485,1722839261704,-151.0,0.00035607,7]
[334205486,1722839261728,-195.517897,0.00035607,7]
[334205487,1722839261759,-195.517897,0.00035607,7]
[334205488,1722839261782,-151.0,0.00035607,7]
[334205489,1722839261804,-151.0,0.00035607,7]
[334205490,1722839261828,-151.83333,0.00035616,7]
[334205491,1722839261850,-151.172785,0.00035616,7]
[334205492,1722839261873,-238.71924,0.00035616,7]
[334205493,1722839261896,-238.71924,0.00035616,7]
[334205494,1722839261918,-151.0,0.00035616,7]
[334205495,1722839261939,-79393.02,0.00035616,3]
[334205496,1722839261964,-66160.85,0.00035616,3]
[334205497,1722839261986,-13758.17370636,0.00035616,3]
[334205505,1722839317508,32623.16057166,0.00025,60]
[334205508,1722839328874,15220.35670132,0.00024,60]
[334205509,1722839329167,164.73992313,0.0002525,120]
[334205510,1722839332610,1103.1086714,0.00025,120]
[334205516,1722839355353,150.5,0.00021906,120]
[334205517,1722839355839,276.91,0.00021896,120]
[334205596,1722839434398,-778.98141005,0.000125,2]
[334205598,1722839434408,-846.88711,0.00013,2]
[334205600,1722839434423,-4251.21888582,0.00013,2]
[334205602,1722839434434,-3884.60274635,0.000139,2]
[334205604,1722839434444,-1978.3651736,0.0001711,2]
[334205605,1722839434455,-200.0,0.00017808,2]
[334205606,1722839434465,-5786.70894128,0.00018,30]
[334205607,1722839434487,-2962.40813257,0.00018,30]
[334205608,1722839434500,-4800.44186743,0.00018447,2]
[334205637,1722839434881,-2895.69071822,0.00018447,2]
[334205639,1722839434892,-1643.04146398,0.00018979,7]
[334205641,1722839434902,-250.0,0.00019302,2]
[334205643,1722839434911,-2943.7837758,0.00019451,2]
[334205666,1722839435168,-6698.77813591,0.00019451,2]
[334205668,1722839435178,-205.20449904,0.00019477,2]
[334205670,1722839435187,-13508.06223005,0.00019999,2]
[334205672,1722839435199,-7251.47054975,0.00019999,2]
[334205674,1722839435209,-300.02945025,0.0002,2]
[334205725,1722839439072,-154.79103211,0.00018979,2]
[334205726,1722839439081,-1846.84896789,0.0002,2]
[334205727,1722839439841,-939.092334,0.0002,2]
[334205730,1722839439853,-156.35315554,0.0002,2]
[334205733,1722839439865,-156.35315554,0.0002,2]
[334205737,1722839439875,-224.53413285,0.0002028,2]
[334205741,1722839439887,-1458.92689728,0.00020621,2]
[334205745,1722839439897,-165.54898858,0.00020721,2]
[334205748,1722839439907,-70378.40364149,0.00021,2]
[334205752,1722839439918,-150.112233,0.00021,2]
[334205755,1722839439929,-12176.2687964,0.00021432,3]
[334205759,1722839439940,-500.0,0.00021641,2]
[334205762,1722839439950,-500.0,0.00021641,2]
[334205765,1722839439961,-500.0,0.00021641,2]
[334205768,1722839439972,-500.0,0.00021641,2]
[334205770,1722839439982,-500.0,0.00021641,2]
[334205771,1722839439992,-500.0,0.00021641,2]
[334205774,1722839440012,-268.86291171,0.00021641,2]
[334205777,1722839440022,-500.0,0.00021641,2]
[334205779,1722839440032,-500.0,0.00021641,2]
[334205781,1722839440042,-500.0,0.00021641,2]
[334205783,1722839440052,-500.0,0.00021641,2]
[334205785,1722839440062,-35012.4181319,0.00021642,2]
[334205788,1722839440072,-3087.63872233,0.00021642,2]
[334205790,1722839440082,-2278.204521,0.00021642,3]
[334205792,1722839440092,-163.08091826,0.00021805,2]
[334205794,1722839440102,-727.4693855,0.00021805,2]
[334205797,1722839440114,-158.07551983,0.00021805,2]
[334205799,1722839440124,-523.10973974,0.00021805,2]
[334205800,1722839440134,-154.74467129,0.00021805,2]
[334205803,1722839440143,-336.1881449,0.00021805,2]
[334205805,1722839440153,-277.18370616,0.00021805,2]
[334205806,1722839440163,-188.2335741,0.00021805,2]
[334205808,1722839440172,-163.08091826,0.00021805,2]
[334205811,1722839440182,-1363.34392567,0.00021805,2]
[334205814,1722839440192,-156.74439841,0.00021805,2]
[334205816,1722839440202,-296.95255386,0.00021805,2]
[334205818,1722839440212,-277.18370616,0.00021805,2]
[334205820,1722839440222,-1458.92689724,0.00021816,2]
[334205822,1722839440231,-912.4763458,0.00021896,2]
[334205824,1722839440241,-8024.99664677,0.00021896,2]
[334205826,1722839440257,-9678.40661042,0.00021896,2]
[334205828,1722839440266,-1669.01055043,0.00021896,2]
[334205830,1722839440276,-13234.84134782,0.00021896,2]
[334205832,1722839440285,-40288.846061,0.00021896,2]
[334205834,1722839440295,-158.48348286,0.00021896,2]
[334205837,1722839440304,-154.74467129,0.00021896,15]
[334205840,1722839440314,-1625.81763535,0.00021896,2]
[334205841,1722839440323,-1610.68802731,0.00021906,2]
[334205843,1722839440332,-1991.50486571,0.00021906,2]
[334205845,1722839440342,-1091.57771247,0.00021906,2]
[334205848,1722839440352,-154.74467129,0.00021906,2]
[334205850,1722839440362,-1794.59755427,0.00021906,2]
[334205852,1722839440372,-1763.34953629,0.00021906,2]
[334205854,1722839440382,-174.54270234,0.00021906,2]
[334205856,1722839440392,-1500.0,0.00021906,2]
[334205858,1722839440402,-951.80625463,0.00021906,2]
[334205860,1722839440412,-1438.19153297,0.00021906,2]
[334205862,1722839440422,-600.70272046,0.00021906,2]
[334205864,1722839440433,-154.74467129,0.00021906,2]
[334205866,1722839440444,-1162.86940617,0.00021906,2]
[334205868,1722839440455,-7061.97318564,0.00021906,2]
[334205870,1722839440465,-1061.01164336,0.00021906,2]
[334205872,1722839440480,-157.81947129,0.00021906,2]
[334205874,1722839440500,-494.194417,0.00021906,2]
[334205876,1722839440515,-154.88378153,0.00021906,2]
[334205878,1722839440524,-1466.0263988,0.00021906,2]
[334205880,1722839440537,-197.60446965,0.00021906,2]
[334205882,1722839440547,-1632.70804043,0.00021906,2]
[334205884,1722839440557,-2139.16821494,0.00021906,2]
[334205886,1722839440567,-1794.59755427,0.00021906,2]
[334205888,1722839440577,-154.93017013,0.00021906,2]
[334205890,1722839440587,-294.09032939,0.00021906,2]
[334205892,1722839440597,-808.0041696,0.00021906,2]
[334205894,1722839440607,-2162.60520141,0.00021906,2]
[334205896,1722839440617,-320.68158213,0.00021906,2]
[334205898,1722839440627,-287.48390331,0.00021906,2]
[334205900,1722839440637,-154.88378153,0.00021906,2]
[334205903,1722839440647,-183.12142007,0.00021906,2]
[334205905,1722839440657,-753.90347342,0.00021906,2]
[334205907,1722839440667,-154.74467129,0.00021906,2]
[334205909,1722839440677,-209.20156569,0.00021906,2]
[334205911,1722839440687,-201.4596201,0.00021906,2]
[334205913,1722839440697,-522.19479555,0.00021906,2]
[334205915,1722839440707,-942.61257937,0.00021906,2]
[334205917,1722839440717,-2124.51614001,0.00021906,2]
[334205919,1722839440727,-189.50767068,0.00021906,2]
[334205921,1722839440736,-426.99038561,0.00021916,2]
[334205923,1722839440746,-240.82219567,0.00021916,2]
[334205925,1722839440764,-42341.71391136,0.00021916,2]
[334205927,1722839440773,-1458.92689724,0.00023011,2]
[334205929,1722839440783,-200.0,0.00024081,2]
[334205931,1722839440793,-1458.92689724,0.00024205,2]
[334205933,1722839440804,-380.0,0.00024658,2]
[334205935,1722839440814,-377.58236,0.00025,7]
[334205937,1722839440824,-377.58236,0.00025,7]
[334205939,1722839440834,-154.74467129,0.00025,2]
[334205941,1722839440845,-23187.37998412,0.00025,30]
[334205942,1722839440858,-369.99091878,0.00025005,2]
[334205944,1722839440868,-1458.92689724,0.000254,2]
[334205946,1722839440880,-37309.8766557,0.0002549,3]
[334205947,1722839440890,-29815.10394436,0.000255,5]
[334205948,1722839440900,-486.25,0.000256,14]
[334205949,1722839440910,-150.112233,0.00026,7]
[334205951,1722839440919,-250.3410689,0.00026099,2]
[334205953,1722839440928,-245.15593956,0.0002654,2]
[334205955,1722839440938,-154.72922386,0.0002654,2]
[334205956,1722839440948,-881.47696693,0.00026579,2]
[334205958,1722839440958,-772.25823972,0.00026579,2]
[334205960,1722839440968,-160.54991199,0.00026583,2]
[334205962,1722839440979,-154.72922386,0.00026589,2]
[334205964,1722839440989,-154.74467129,0.00026599,2]
[334205966,1722839441009,-5094.91749243,0.0002661,30]
[334205967,1722839441023,-8018.21067544,0.00028,120]
[334205969,1722839441034,-369.99091878,0.0002851,2]
[334205971,1722839441044,-255.16860493,0.000288,120]
[334205973,1722839441056,-150.0,0.0002943,14]
[334205975,1722839441067,-150.0,0.0002943,14]
[334205976,1722839441080,-154.0,0.0002943,14]
[334205978,1722839441090,-487.49613267,0.0002943,60]
[334205980,1722839441101,-1813.87,0.0002943,120]
[334205982,1722839441110,-1418.8,0.0002943,120]
[334205984,1722839441120,-280.64645346,0.0002943,120]
[334205985,1722839441130,-4739.68853354,0.00029431,2]
[334206203,1722839443817,-8203.42487422,0.00029431,2]
[334206204,1722839443827,-200.0,0.00030353,2]
[334206205,1722839443837,-150.112233,0.000311,10]
[334206206,1722839443847,-369.99091878,0.00032016,2]
[334206207,1722839443857,-4364.56910704,0.000325,60]
[334206208,1722839443867,-3715.03,0.000325,14]
[334206209,1722839443878,-503.01738548,0.00035,120]
[334206210,1722839443888,-4135.19420899,0.00035,120]
[334206211,1722839443898,-2117.82360345,0.00035438,26]
[334206212,1722839443908,-369.99091878,0.00035522,2]
[334206213,1722839443918,-18654.9383279,0.00035596,4]
[334206214,1722839443928,-1304.758668,0.00035616,7]
[334206215,1722839443937,-1304.758668,0.00035616,7]
[334206216,1722839443947,-151.0,0.00035616,7]
[334206217,1722839443957,-151.0,0.00035616,7]
[334206218,1722839443966,-151.0,0.00035616,7]
[334206219,1722839443976,-363.76476106,0.00035616,4]
[334206220,1722839443986,-2184.39989395,0.00035616,4]
[334206221,1722839443996,-486.25,0.000357,14]
[334206222,1722839444015,-2117.82360345,0.00035792,26]
[334206223,1722839444025,-151.0,0.00035952,15]
[334206224,1722839444035,-150.112233,0.000361,9]
[334206225,1722839444045,-1439.77021171,0.00036147,26]
[334206226,1722839444055,-274.0,0.00036247,2]
[334206227,1722839444066,-151.0,0.00036438,120]
[334206228,1722839444075,-3080.238492,0.0003653,120]
[334206229,1722839444086,-200.0,0.00036626,2]
[334206230,1722839444096,-7238.33497333,0.000368,120]
[334206231,1722839444109,-2521.7625375,0.000368,120]
[334206232,1722839444120,-168.82398936,0.000368,7]
[334206233,1722839444272,-19.38566364,0.000368,7]
[334206234,1722839444282,-220.77333,0.000368,7]
[334206235,1722839444292,-220.77333,0.000368,7]
[334206236,1722839444302,-196.697996,0.000368,7]
[334206237,1722839444311,-196.697996,0.000368,7]
[334206238,1722839444321,-377.58236,0.000368,7]
[334206239,1722839444330,-377.58236,0.000368,7]
[334206240,1722839444341,-155.00833792,0.00037601,44]
[334206241,1722839444350,-151.0,0.00037726,120]
[334206242,1722839444359,-151.0,0.00038109,15]
[334206243,1722839444369,-151.0,0.00038109,15]
[334206244,1722839444379,-2142.49862644,0.000382,14]
[334206245,1722839444391,-1572.53137356,0.000382,14]
[334206246,1722839444401,-150.112233,0.000383,5]
[334206247,1722839444411,-267.2,0.00039,30]
[334206248,1722839444420,-151.0,0.00039014,120]
[334206249,1722839444429,-369.99091878,0.00039027,2]
[334206250,1722839444438,-486.25,0.000391,14]
[334206251,1722839444447,-448.67948301,0.000399,120]
[334206252,1722839444457,-2729.12144457,0.0004,120]
[334206253,1722839444466,-151.0,0.0004,14]
[334206254,1722839444477,-151.216934,0.0004,14]
[334206255,1722839444490,-151.0,0.0004,14]
[334206256,1722839444499,-217.09203945,0.0004,120]
[334206257,1722839444515,-259.16122,0.00040086,2]
[334206258,1722839444526,-151.0,0.00040266,15]
[334206259,1722839444536,-151.0,0.00040266,15]
[334206260,1722839444547,-151.0,0.00040301,120]
[334206261,1722839444556,-439.0,0.00041,14]
[334206262,1722839444567,-151.0,0.00041041,14]
[334206263,1722839444576,-151.0,0.00041041,14]
[334206264,1722839444587,-195.517897,0.00041041,14]
[334206265,1722839444597,-195.517897,0.00041041,14]
[334206266,1722839444606,-152.0,0.00041041,31]
[334206267,1722839444616,-152.0,0.00041041,31]
[334206268,1722839444625,-200.0,0.00041073,2]
[334206269,1722839444635,-18654.9383279,0.00041075,5]
[334206270,1722839444645,-18654.9383279,0.00041085,5]
[334206271,1722839444655,-151.0,0.00041085,14]
[334206272,1722839444665,-151.0,0.00041085,14]
[334206273,1722839444675,-151.0,0.00041085,14]
[334206274,1722839444685,-151.0,0.00041085,14]
[334206275,1722839444695,-130584.568295,0.00041085,5]
[334206276,1722839444705,-160.0,0.00041094,30]
[334206277,1722839444715,-151.0,0.00041095,14]
[334206278,1722839444726,-500.0,0.00041095,31]
[334206279,1722839444736,-500.0,0.00041095,31]
[334206280,1722839444746,-428.53852169,0.00041095,31]
[334206281,1722839444765,-406.91155932,0.00041095,3]
[334206282,1722839444774,-151.0,0.00041095,14]
[334206283,1722839444784,-151.340432,0.00041095,14]
[334206284,1722839444793,-500.0,0.00041095,31]
[334206285,1722839444802,-500.0,0.00041095,31]
[334206286,1722839444811,-500.0,0.00041095,31]
[334206287,1722839444821,-500.0,0.00041095,31]
[334206288,1722839444831,-151.0,0.00041095,14]
[334206289,1722839444841,-151.0,0.00041095,14]
[334206290,1722839444850,-534.43408412,0.00041095,31]
[334206291,1722839444860,-500.0,0.00041095,31]
[334206292,1722839444869,-500.0,0.00041095,31]
[334206293,1722839444880,-500.0,0.00041095,31]
[334206294,1722839444889,-500.0,0.00041095,31]
[334206295,1722839444899,-500.0,0.00041095,31]
[334206296,1722839444909,-500.0,0.00041095,31]
[334206297,1722839444918,-501.12986984,0.00041095,31]
[334206298,1722839444928,-500.0,0.00041095,31]
[334206299,1722839444938,-502.98069856,0.00041095,31]
[334206300,1722839444947,-500.0,0.00041095,31]
[334206301,1722839444957,-500.0,0.00041095,31]
[334206302,1722839444966,-500.0,0.00041095,31]
[334206303,1722839444976,-500.0,0.00041095,31]
[334206305,1722839444985,-500.0,0.00041095,31]
[334206306,1722839444995,-500.0,0.00041095,31]
[334206308,1722839445010,-500.0,0.00041095,31]
[334206310,1722839445020,-500.0,0.00041095,31]
[334206312,1722839445030,-500.0,0.00041095,31]
[334206314,1722839445039,-500.0,0.00041095,31]
[334206316,1722839445049,-500.0,0.00041095,31]
[334206318,1722839445058,-500.0,0.00041095,31]
[334206319,1722839445068,-500.0,0.00041095,31]
[334206321,1722839445078,-500.0,0.00041095,31]
[334206323,1722839445087,-500.0,0.00041095,31]
[334206325,1722839445097,-500.0,0.00041095,31]
[334206327,1722839445107,-500.0,0.00041095,31]
[334206329,1722839445117,-500.0,0.00041095,31]
[334206331,1722839445126,-500.0,0.00041095,31]
[334206333,1722839445135,-1100.0,0.00041095,20]
[334206335,1722839445145,-500.0,0.00041095,31]
[334206337,1722839445155,-500.0,0.00041095,31]
[334206339,1722839445165,-500.0,0.00041095,31]
[334206341,1722839445174,-500.0,0.00041095,31]
[334206343,1722839445184,-500.0,0.00041095,31]
[334206345,1722839445193,-500.0,0.00041095,31]
[334206347,1722839445202,-500.0,0.00041095,31]
[334206349,1722839445212,-500.0,0.00041095,31]
[334206351,1722839445223,-500.0,0.00041095,31]
[334206353,1722839445233,-500.0,0.00041095,31]
[334206355,1722839445242,-449.76758989,0.00041095,31]
[334206357,1722839445257,-502.35989202,0.00041095,31]
[334206359,1722839445269,-641.19545222,0.00041095,31]
[334206361,1722839445278,-500.0,0.00041095,31]
[334206363,1722839445287,-500.0,0.00041095,31]
[334206365,1722839445296,-500.0,0.00041095,31]
[334206367,1722839445305,-500.0,0.00041095,31]
[334206369,1722839445314,-500.0,0.00041095,31]
[334206371,1722839445323,-500.0,0.00041095,31]
[334206374,1722839445335,-500.0,0.00041095,31]
[334206376,1722839445345,-518.82,0.00041095,31]
[334206378,1722839445355,-151.0,0.00041095,14]
[334206380,1722839445364,-500.0,0.00041095,31]
[334206382,1722839445374,-500.0,0.00041095,31]
[334206384,1722839445383,-500.0,0.00041095,2]
[334206393,1722839445463,-513.55479779,0.00041095,31]
[334206395,1722839445474,-500.0,0.00041095,31]
[334206397,1722839445485,-500.0,0.00041095,31]
[334206399,1722839445495,-500.0,0.00041095,31]
[334206400,1722839445512,-500.0,0.00041095,31]
[334206402,1722839445524,-500.0,0.00041095,31]
[334206404,1722839445534,-500.0,0.00041095,31]
[334206406,1722839445543,-500.0,0.00041095,31]
[334206408,1722839445552,-973.96,0.00041095,31]
[334206410,1722839445563,-500.0,0.00041095,31]
[334206412,1722839445574,-500.0,0.00041095,31]
[334206414,1722839445584,-500.0,0.00041095,31]
[334206416,1722839445595,-500.0,0.00041095,31]
[334206418,1722839445606,-500.0,0.00041095,31]
[334206420,1722839445616,-500.0,0.00041095,31]
[334206422,1722839445626,-500.0,0.00041095,31]
[334206424,1722839445636,-500.0,0.00041095,31]
[334206426,1722839445646,-500.0,0.00041095,31]
[334206429,1722839445656,-500.0,0.00041095,31]
[334206431,1722839445666,-500.0,0.00041095,31]
[334206433,1722839445676,-500.0,0.00041095,31]
[334206435,1722839445685,-502.61199637,0.00041095,31]
[334206437,1722839445695,-151.0,0.00041095,14]
[334206439,1722839445705,-500.0,0.00041095,31]
[334206441,1722839445715,-500.0,0.00041095,31]
[334206443,1722839445725,-500.0,0.00041095,31]
[334206445,1722839445735,-500.0,0.00041095,31]
[334206447,1722839445745,-500.0,0.00041095,31]
[334206449,1722839445764,-500.0,0.00041095,31]
[334206450,1722839445774,-500.0,0.00041095,31]
[334206452,1722839445783,-500.0,0.00041095,31]
[334206455,1722839445793,-500.0,0.00041095,31]
[334206456,1722839445803,-500.0,0.00041095,31]
[334206458,1722839445812,-500.0,0.00041095,31]
[334206460,1722839445823,-500.0,0.00041095,31]
[334206462,1722839445832,-500.0,0.00041095,31]
[334206464,1722839445843,-500.0,0.00041095,31]
[334206466,1722839445853,-500.0,0.00041095,31]
[334206468,1722839445862,-500.0,0.00041095,31]
[334206470,1722839445872,-500.0,0.00041095,31]
[334206472,1722839445882,-500.0,0.00041095,31]
[334206474,1722839445891,-500.0,0.00041095,31]
[334206476,1722839445901,-500.0,0.00041095,31]
[334206478,1722839445911,-500.0,0.00041095,31]
[334206480,1722839445920,-561.05032087,0.00041095,31]
[334206482,1722839445931,-500.0,0.00041095,31]
[334206484,1722839445941,-500.0,0.00041095,31]
[334206486,1722839445951,-500.0,0.00041095,31]
[334206488,1722839445960,-500.0,0.00041095,31]
[334206490,1722839445970,-519.19398712,0.00041095,31]
[334206492,1722839445980,-500.0,0.00041095,31]
[334206494,1722839445991,-500.0,0.00041095,31]
[334206496,1722839446004,-500.0,0.00041095,31]
[334206498,1722839446017,-251.62374921,0.00041095,31]
[334206500,1722839446026,-151.276711,0.00041095,14]
[334206502,1722839446035,-500.0,0.00041095,31]
[334206503,1722839446046,-500.0,0.00041095,31]
[334206504,1722839446056,-503.45041794,0.00041095,31]
[334206505,1722839446067,-500.0,0.00041095,31]
[334206506,1722839446076,-500.0,0.00041095,31]
[334206507,1722839446085,-601.31209545,0.00041095,31]
[334206508,1722839446095,-500.0,0.00041095,31]
[334206509,1722839446104,-240.61542003,0.00041095,31]
[334206510,1722839446113,-500.0,0.00041095,31]
[334206511,1722839446123,-500.0,0.00041095,31]
[334206513,1722839446133,-500.0,0.00041095,31]
[334206515,1722839446142,-500.0,0.00041095,31]
[334206517,1722839446153,-500.0,0.00041095,31]
[334206521,1722839446162,-500.0,0.00041095,31]
[334206523,1722839446171,-500.0,0.00041095,31]
[334206524,1722839446182,-500.0,0.00041095,31]
[334206525,1722839446191,-500.0,0.00041095,31]
[334206526,1722839446201,-500.0,0.00041095,31]
[334206527,1722839446210,-500.0,0.00041095,31]
[334206528,1722839446219,-500.0,0.00041095,31]
[334206530,1722839446229,-500.0,0.00041095,31]
[334206532,1722839446238,-500.0,0.00041095,31]
[334206533,1722839446249,-500.0,0.00041095,31]
[334206534,1722839446267,-500.0,0.00041095,31]
[334206535,1722839446276,-500.0,0.00041095,31]
[334206536,1722839446286,-1000.0,0.00041095,7]
[334206537,1722839446295,-500.0,0.00041095,31]
[334206538,1722839446304,-500.0,0.00041095,31]
[334206539,1722839446314,-500.0,0.00041095,31]
[334206540,1722839446323,-500.0,0.00041095,31]
[334206541,1722839446332,-500.0,0.00041095,31]
[334206543,1722839446340,-500.0,0.00041095,31]
[334206545,1722839446350,-500.0,0.00041095,31]
[334206547,1722839446359,-500.0,0.00041095,31]
[334206548,1722839446369,-500.0,0.00041095,31]
[334206550,1722839446378,-500.0,0.00041095,31]
[334206552,1722839446387,-500.0,0.00041095,31]
[334206554,1722839446397,-226.03223306,0.00041095,31]
[334206556,1722839446406,-880.99,0.00041095,31]
[334206558,1722839446415,-500.0,0.00041095,31]
[334206560,1722839446425,-500.0,0.00041095,31]
[334206562,1722839446434,-500.19975229,0.00041095,31]
[334206564,1722839446443,-500.0,0.00041095,31]
[334206567,1722839446453,-500.0,0.00041095,31]
[334206569,1722839446462,-500.0,0.00041095,31]
[334206571,1722839446472,-500.0,0.00041095,31]
[334206573,1722839446486,-500.0,0.00041095,31]
[334206576,1722839446495,-949.76,0.00041095,31]
[334206578,1722839446513,-500.0,0.00041095,31]
[334206580,1722839446524,-500.0,0.00041095,31]
[334206582,1722839446533,-500.0,0.00041095,31]